bitfinex/quotes_BTCUSD_20250529
["timestamp","ask_amount","ask_price","bid_price","bid_amount"]
[1748503239601,0.19449829,107970.0,107960.0,0.0563765]
[1748503240222,0.19449829,107970.0,107960.0,0.08348626]
[1748503240444,0.19449829,107970.0,107960.0,0.0563767]
[1748503242610,0.19449829,107970.0,107960.0,0.05837712]
[1748503246910,0.19449829,107970.0,107960.0,0.0583776]
[1748503251417,0.19449829,107970.0,107960.0,0.05837679]
[1748503255724,0.19449829,107970.0,107960.0,0.05837713]
[1748503260027,0.19449829,107970.0,107960.0,0.05837799]
[1748503260495,0.19449829,107970.0,107960.0,0.59467355]
[1748503260496,0.20375986,107970.0,107960.0,0.59467355]
[1748503260726,0.19449829,107970.0,107960.0,0.60715372]
[1748503261194,0.18523663,107970.0,107960.0,0.41263725]
[1748503261429,0.18523663,107970.0,107960.0,0.81263725]
[1748503262601,0.18523663,107970.0,107960.0,0.81263603]
[1748503263067,0.18523663,107970.0,107960.0,0.82189871]
[1748503263722,0.18523663,107970.0,107960.0,0.81263603]
[1748503263923,0.18523663,107970.0,107960.0,1.09915603]
[1748503265150,0.18523663,107970.0,107960.0,1.09911603]
[1748503266460,0.18523663,107970.0,107960.0,1.29363242]
[1748503266614,0.18523663,107970.0,107960.0,1.09911603]
[1748503266819,0.18523663,107970.0,107960.0,1.09911676]
[1748503267094,0.18523663,107970.0,107960.0,0.75965317]
[1748503267296,0.18523663,107970.0,107960.0,1.09911676]
[1748503267502,0.18523663,107970.0,107960.0,0.75965317]
[1748503267712,0.18523663,107970.0,107960.0,1.09911676]
[1748503269564,0.18523663,107970.0,107960.0,1.10837944]
[1748503270196,0.18523663,107970.0,107960.0,1.09911676]
[1748503271197,0.18523663,107970.0,107960.0,1.09911683]
[1748503271848,0.18523663,107970.0,107960.0,1.08802011]
[1748503274013,0.18523663,107970.0,107960.0,1.09911629]
[1748503274771,0.18523663,107970.0,107960.0,0.7596527]
[1748503275441,0.18523663,107970.0,107960.0,0.75965251]
[1748503277028,0.18523663,107970.0,107960.0,1.39394861]
[1748503277029,0.01852323,107970.0,107960.0,1.39394861]
[1748503277226,0.01852323,107970.0,107960.0,0.98285262]
[1748503277227,0.222283,107970.0,107960.0,0.98285262]
[1748503277442,0.222283,107970.0,107960.0,0.97359036]
[1748503277807,0.03704637,107970.0,107960.0,0.98285262]
[1748503278010,0.02778454,107970.0,107960.0,0.9828527]
[1748503278252,0.03704628,107970.0,107960.0,0.99211478]
[1748503279091,0.04630811,107970.0,107960.0,0.99211496]
[1748503279299,0.04630811,107970.0,107960.0,1.00137713]
[1748503279827,0.0370468,107970.0,107960.0,0.99211496]
[1748503281109,0.0370468,107970.0,107960.0,1.40137713]
[1748503281317,0.22228343,107970.0,107960.0,1.3828527]
[1748503282290,0.0370468,107970.0,107960.0,1.3828527]
[1748503282526,0.0370468,107970.0,107960.0,1.39211487]
[1748503282735,0.01852323,107970.0,107960.0,1.40137695]
[1748503282944,0.02778497,107970.0,107960.0,1.3828527]
[1748503283421,0.02778497,107970.0,107960.0,1.39211487]
[1748503283668,0.0370468,107970.0,107960.0,1.39211487]
[1748503285274,0.0370468,107970.0,107960.0,0.99211487]
[1748503286029,0.0370468,107970.0,107960.0,0.99211496]
[1748503286232,0.02778497,107970.0,107960.0,1.00137713]
[1748503286457,0.0370468,107970.0,107960.0,1.00137713]
[1748503286657,0.22228343,107970.0,107960.0,0.99211496]
[1748503287658,0.22228343,107970.0,107960.0,1.00137713]
[1748503288878,0.20157988,107970.0,107960.0,1.00137713]
[1748503289503,0.21084145,107970.0,107960.0,1.00137713]
[1748503290717,0.21084145,107970.0,107960.0,0.99211496]
[1748503291163,0.20157988,107970.0,107960.0,0.9828527]
[1748503291496,0.20157988,107970.0,107960.0,0.97359036]
[1748503291670,0.20157988,107970.0,107960.0,0.9828527]
[1748503292290,0.20157988,107970.0,107960.0,0.32288426]
[1748503292516,0.20157988,107970.0,107960.0,0.60326686]
[1748503292921,0.20157988,107970.0,107960.0,0.61252937]
[1748503294444,0.20157988,107970.0,107960.0,1.01252937]
[1748503294668,0.20157988,107970.0,107960.0,1.00326686]
[1748503294876,0.19449846,107970.0,107960.0,1.00326686]
[1748503295150,0.19449846,107970.0,107960.0,1.34273045]
[1748503296070,0.19449846,107970.0,107960.0,1.35199296]
[1748503296221,0.19449846,107970.0,107960.0,1.08801045]
[1748503296440,0.19449846,107970.0,107960.0,1.37433045]
[1748503297276,0.19449846,107970.0,107960.0,1.38359296]
[1748503299696,0.19449846,107970.0,107960.0,1.37433045]
[1748503301441,0.19449846,107970.0,107960.0,1.38359296]
[1748503302275,0.19449846,107970.0,107960.0,1.37433045]
[1748503302700,0.19449846,107970.0,107960.0,1.39285522]
[1748503302701,0.00926157,107970.0,107960.0,1.39285522]
[1748503302923,0.02778462,107970.0,107960.0,1.40211739]
[1748503303137,0.02778462,107970.0,107960.0,1.41137947]
[1748503303367,0.02778385,107970.0,107960.0,1.41137947]
[1748503303829,0.03704551,107970.0,107960.0,1.41137947]
[1748503304025,0.04630725,107970.0,107960.0,1.41137947]
[1748503304256,0.04630725,107970.0,107960.0,1.43848903]
[1748503304465,0.04630725,107970.0,107960.0,1.41137947]
[1748503304884,0.03704619,107970.0,107960.0,1.40211739]
[1748503305353,0.03704619,107970.0,107960.0,1.0626538]
[1748503305571,0.03704619,107970.0,107960.0,1.40211739]
[1748503306399,0.03704619,107970.0,107960.0,1.41137947]
[1748503306628,0.03704619,107970.0,107960.0,1.40211739]
[1748503307344,0.03704619,107970.0,107960.0,1.41137947]
[1748503308592,0.02778445,107970.0,107960.0,1.01137947]
[1748503309407,0.01852279,107970.0,107960.0,1.01137947]
[1748503309619,0.01852279,107970.0,107960.0,0.65339163]
[1748503309819,0.01852279,107970.0,107960.0,1.01137947]
[1748503310021,0.02778445,107970.0,107960.0,1.01137947]
[1748503310240,0.01852279,107970.0,107960.0,1.01137947]
[1748503310448,0.02778445,107970.0,107960.0,1.01137947]
[1748503311655,0.02778445,107970.0,107960.0,0.72505947]
[1748503312487,0.02778445,107970.0,107960.0,0.38559588]
[1748503312712,0.02778445,107970.0,107960.0,0.33547163]
[1748503312925,0.02778445,107970.0,107960.0,0.69345947]
[1748503314017,0.02778445,107970.0,107960.0,0.3447338]
[1748503314227,0.02778445,107970.0,107960.0,0.33547163]
[1748503314452,0.02778445,107970.0,107960.0,0.6841973]
[1748503314659,0.02778445,107970.0,107960.0,0.33547163]
[1748503314870,0.03704619,107970.0,107960.0,1.08419739]
[1748503315077,0.03704619,107970.0,107960.0,1.12435947]
[1748503315078,0.03704543,107970.0,107960.0,1.12435947]
[1748503315324,0.03704543,107970.0,107960.0,0.78489588]
[1748503315530,0.03704543,107970.0,107960.0,1.12435947]
[1748503315963,0.04630717,107970.0,107960.0,1.11509739]
[1748503316171,0.03704543,107970.0,107960.0,1.12435947]
[1748503316387,0.03704543,107970.0,107960.0,0.78489588]
[1748503316610,0.03704543,107970.0,107960.0,1.12435947]
[1748503317041,0.03704534,107970.0,107960.0,1.12435947]
[1748503318106,0.046307,107970.0,107960.0,1.12435947]
[1748503318763,0.00926106,107970.0,107960.0,1.12435947]
[1748503318977,0.00926106,107970.0,107960.0,1.1095638]
[1748503319223,0.01852237,107970.0,107960.0,1.1095638]
[1748503319676,0.01852237,107970.0,107960.0,0.77010021]
[1748503319896,0.01852237,107970.0,107960.0,1.1095638]
[1748503320115,0.00926106,107970.0,107960.0,1.1095638]
[1748503320326,0.01852237,107970.0,107960.0,1.1095638]
[1748503320567,0.01852229,107970.0,107960.0,1.1095638]
[1748503320793,0.0277836,107970.0,107960.0,0.77010021]
[1748503321005,0.0277836,107970.0,107960.0,1.1095638]
[1748503322909,0.04016003,107990.0,107980.0,0.19448028]
[1748503323134,0.03703933,107990.0,107980.0,0.69088731]
[1748503323332,0.21298155,107990.0,107980.0,0.7056714]
[1748503323762,0.20372204,107990.0,107980.0,0.71493203]
[1748503324185,0.20372204,107990.0,107980.0,0.37546844]
[1748503324401,0.20372204,107990.0,107980.0,1.11493203]
[1748503324611,0.01851971,107990.0,107980.0,1.10014802]
[1748503324839,0.20372204,107990.0,107980.0,1.10924909]
[1748503325045,0.20372204,107990.0,107980.0,1.10923785]
[1748503325253,0.20372204,107990.0,107980.0,1.38071651]
[1748503325455,0.20372204,107990.0,107980.0,1.05051363]
[1748503325866,0.20372204,107990.0,107980.0,1.05977426]
[1748503326078,0.02777974,107990.0,107980.0,1.0690348]
[1748503326285,0.01851928,107990.0,107980.0,1.07829517]
[1748503326499,0.03703933,107990.0,107980.0,1.0690348]
[1748503326713,0.03703933,107990.0,107980.0,1.07829525]
[1748503327142,0.03703925,107990.0,107980.0,1.06903445]
[1748503327347,0.04629936,107990.0,107980.0,1.059774]
[1748503327964,0.02777922,107990.0,107980.0,1.06903437]
[1748503328191,0.03703933,107990.0,107980.0,1.059774]
[1748503328351,0.02777922,107990.0,107980.0,1.06903437]
[1748503328765,0.03703933,107990.0,107980.0,1.059774]
[1748503329109,0.03703933,107990.0,107980.0,1.06903445]
[1748503329312,0.03703925,107990.0,107980.0,1.06902748]
[1748503329523,0.02777922,107990.0,107980.0,1.07828785]
[1748503329747,4.02237527,108000.0,107990.0,0.20372213]
[1748503329966,4.00929215,108000.0,107990.0,0.54318572]
[1748503330171,3.99077475,108000.0,107990.0,0.68666898]
[1748503330384,4.00929215,108000.0,107990.0,0.65230624]
[1748503330636,4.00929215,108000.0,107990.0,1.07081685]
[1748503331052,4.01855123,108000.0,107990.0,1.07181685]
[1748503331260,4.00929215,108000.0,107990.0,1.07181685]
[1748503331468,4.02781023,108000.0,107990.0,1.07181685]
[1748503331674,4.02781023,108000.0,107990.0,1.07081685]
[1748503332749,4.01855106,108000.0,107990.0,1.07081685]
[1748503332962,4.02781006,108000.0,107990.0,1.07181685]
[1748503333435,4.02781006,108000.0,107990.0,1.07180173]
[1748503335103,4.02781066,108000.0,107990.0,1.07180173]
[1748503335528,4.01855158,108000.0,107990.0,1.07180173]
[1748503336168,4.02781066,108000.0,107990.0,1.07180173]
[1748503336369,4.01855158,108000.0,107990.0,1.07180173]
[1748503336598,4.00929258,108000.0,107990.0,1.07180173]
[1748503337005,4.01855166,108000.0,107990.0,1.41126532]
[1748503337443,4.01855166,108000.0,107990.0,1.06253568]
[1748503337632,4.01855166,108000.0,107990.0,1.07179528]
[1748503337854,4.01855166,108000.0,107990.0,1.08105479]
[1748503338007,4.00929258,108000.0,107990.0,1.07179528]
[1748503338192,4.01855166,108000.0,107990.0,1.08105479]
[1748503339038,4.02781083,108000.0,107990.0,1.08105479]
[1748503339202,4.01855226,108000.0,107990.0,1.06253568]
[1748503339415,4.02781151,108000.0,107990.0,0.78123536]
[1748503339634,4.02781151,108000.0,107990.0,1.08161496]
[1748503339841,4.01855226,108000.0,107990.0,1.09087447]
[1748503340054,3.99077518,108000.0,107990.0,0.73921806]
[1748503340265,3.99077518,108000.0,107990.0,0.69303447]
[1748503340457,4.01855208,108000.0,107990.0,0.69303447]
[1748503340832,4.01855208,108000.0,107990.0,1.08377487]
[1748503341075,4.00929291,108000.0,107990.0,1.08377487]
[1748503341285,4.01855208,108000.0,107990.0,1.08377487]
[1748503342110,4.01855208,108000.0,107990.0,1.07451536]
[1748503342315,4.01855208,108000.0,107990.0,1.09303447]
[1748503342520,4.00929291,108000.0,107990.0,1.12014403]
[1748503342730,4.00929291,108000.0,107990.0,1.09303447]
[1748503342937,4.00929291,108000.0,107990.0,1.43249557]
[1748503343352,4.00929291,108000.0,107990.0,1.08377247]
[1748503343553,4.00003383,108000.0,107990.0,1.43249557]
[1748503343755,3.99077492,108000.0,107990.0,1.43249557]
[1748503343966,3.98151627,108000.0,107990.0,1.43249557]
[1748503344171,4.00929232,108000.0,107990.0,1.10781599]
[1748503344373,4.00929232,108000.0,107990.0,1.44727958]
[1748503344788,4.00003349,108000.0,107990.0,1.10781599]
[1748503344997,4.00003349,108000.0,107990.0,1.44727958]
[1748503345853,4.00003349,108000.0,107990.0,1.44728012]
[1748503346490,4.00929232,108000.0,107990.0,1.44728012]
[1748503347321,4.00003349,108000.0,107990.0,0.81453653]
[1748503347539,3.99077475,108000.0,107990.0,1.52763393]
[1748503347742,4.00003332,108000.0,107990.0,1.52763393]
[1748503348604,4.00929197,108000.0,107990.0,1.52763393]
[1748503349442,4.00003332,108000.0,107990.0,1.52763393]
[1748503350124,3.98151627,108000.0,107990.0,1.52763393]
[1748503350367,3.99077484,108000.0,107990.0,1.52763393]
[1748503350573,3.99077475,108000.0,107990.0,1.52763393]
[1748503351959,3.98151627,108000.0,107990.0,1.52763393]
[1748503352185,3.98151627,108000.0,107990.0,1.82173393]
[1748503352420,3.98151627,108000.0,107990.0,1.48227034]
[1748503352663,3.98151627,108000.0,107990.0,1.82173393]
[1748503353411,3.98151627,108000.0,107990.0,1.80694992]
[1748503354072,3.98151627,108000.0,107990.0,1.46748633]
[1748503354293,3.98151627,108000.0,107990.0,1.46648633]
[1748503354500,3.98151627,108000.0,107990.0,1.80594992]
[1748503354716,3.98151627,108000.0,107990.0,1.80794992]
[1748503354940,3.99077475,108000.0,107990.0,1.80794992]
[1748503355151,3.98151627,108000.0,107990.0,1.80794992]
[1748503356896,3.98151627,108000.0,107990.0,1.42326992]
[1748503357148,4.18521936,108000.0,107990.0,0.5142886]
[1748503357377,4.21721936,108000.0,107990.0,0.82250934]
[1748503357598,4.21721936,108000.0,107990.0,0.5136653]
[1748503357823,4.21721936,108000.0,107990.0,0.12545135]
[1748503358250,4.21721936,108000.0,107990.0,0.12545534]
[1748503358501,4.21721936,108000.0,107990.0,0.42617146]
[1748503358761,4.21721936,108000.0,107990.0,0.41163061]
[1748503358973,4.21721936,108000.0,107990.0,0.42617146]
[1748503359189,4.21721936,108000.0,107990.0,0.40766085]
[1748503359190,4.55721936,108000.0,107990.0,0.40766085]
[1748503360170,4.55721936,108000.0,107990.0,0.11042085]
[1748503361343,4.55721936,108000.0,107990.0,0.40790085]
[1748503362938,4.55721936,108000.0,107990.0,0.01654085]
[1748503363158,4.55721936,108000.0,107990.0,0.31370085]
[1748503363607,4.55721936,108000.0,107990.0,0.01654085]
[1748503363818,4.55721936,108000.0,107990.0,0.31362085]
[1748503364683,4.55721936,108000.0,107990.0,0.01654085]
[1748503364944,4.85413936,108000.0,107990.0,0.002]
[1748503365424,4.94519331,108000.0,107990.0,0.002]
[1748503368494,4.97298931,108000.0,107990.0,0.002]
[1748503373946,4.67606931,108000.0,107990.0,0.002]
[1748503374158,4.97190931,108000.0,107990.0,0.002]
[1748503385714,10.00190931,108000.0,107990.0,0.002]
[1748503388793,10.09554931,108000.0,107990.0,0.002]
[1748503390801,10.10491974,108000.0,107990.0,0.002]
[1748503391584,10.49549369,108000.0,107990.0,0.002]
[1748503391805,10.81659098,108000.0,107990.0,0.002]
[1748503392026,10.80656534,108000.0,107990.0,0.002]
[1748503392698,10.71551139,108000.0,107990.0,0.002]
[1748503393120,0.20375969,107970.0,107960.0,4e-05]
[1748503393345,0.20375969,107970.0,107960.0,0.03024]
[1748503394850,0.20375969,107970.0,107960.0,0.03324]
[1748503395059,0.20375969,107970.0,107960.0,0.03424]
[1748503395275,0.20375969,107970.0,107960.0,0.04766622]
[1748503396172,0.20375969,107970.0,107960.0,0.03424]
[1748503396388,0.20375969,107970.0,107960.0,0.01914]
[1748503397297,0.20375969,107970.0,107960.0,0.00404]
[1748503398606,0.20375969,107970.0,107960.0,0.02404]
[1748503399753,0.20375969,107970.0,107960.0,0.05534]
[1748503400552,0.20375969,107970.0,107960.0,0.06343609]
[1748503400765,0.20375969,107970.0,107960.0,0.05534]
[1748503400975,0.20375969,107970.0,107960.0,0.02404]
[1748503404576,0.55975969,107970.0,107960.0,0.02404]
[1748503404802,0.57515969,107970.0,107960.0,0.02404]
[1748503405449,0.57515969,107970.0,107960.0,0.02004]
[1748503405855,0.57515969,107970.0,107960.0,0.02204]
[1748503406715,0.96037364,107970.0,107960.0,0.02204]
[1748503415052,0.98817964,107970.0,107960.0,0.02204]
[1748503416515,0.96037364,107970.0,107960.0,0.02204]
[1748503417498,0.94497364,107970.0,107960.0,0.02204]
[1748503417701,0.96077364,107970.0,107960.0,0.02204]
[1748503421055,0.96077364,107970.0,107960.0,0.03070924]
[1748503421277,0.96077364,107970.0,107960.0,0.02204]
[1748503421467,0.96077364,107970.0,107960.0,0.03070915]
[1748503424103,0.96077364,107970.0,107960.0,0.03937817]
[1748503424318,0.96077364,107970.0,107960.0,0.03070915]
[1748503424528,0.96077364,107970.0,107960.0,0.03937817]
[1748503424736,0.96077364,107970.0,107960.0,0.03070915]
[1748503425374,0.96077364,107970.0,107960.0,0.03937817]
[1748503425592,0.96077364,107970.0,107960.0,0.03070915]
[1748503426221,0.96077364,107970.0,107960.0,0.03937888]
[1748503426444,0.96077364,107970.0,107960.0,0.03937922]
[1748503428174,0.96077364,107970.0,107960.0,0.04804982]
[1748503428577,0.96077364,107970.0,107960.0,0.03937922]
[1748503428796,0.96077364,107970.0,107960.0,0.04804953]
[1748503429267,1.05341364,107970.0,107960.0,0.04804953]
[1748503429473,1.05341364,107970.0,107960.0,0.03937922]
[1748503430249,1.05341364,107970.0,107960.0,0.03737922]
[1748503430673,1.05341364,107970.0,107960.0,0.03837922]
[1748503433429,6.08341364,107970.0,107960.0,0.03837922]
[1748503435189,6.10218915,107970.0,107960.0,0.03837922]
[1748503436717,5.80802915,107970.0,107960.0,0.03837922]
[1748503436941,6.08326915,107970.0,107960.0,0.03837922]
[1748503437606,6.08318915,107970.0,107960.0,0.03837922]
[1748503437868,6.06718915,107970.0,107960.0,0.03837922]
[1748503453761,6.06718915,107970.0,107960.0,0.05837922]
[1748503455404,5.77622915,107970.0,107960.0,0.05837922]
[1748503455608,6.06554915,107970.0,107960.0,0.05837922]
[1748503458146,6.06554915,107970.0,107960.0,0.08288714]
[1748503460626,0.20375969,107970.0,107960.0,0.08907922]
[1748503461482,0.63481364,107970.0,107960.0,0.08907922]
[1748503463667,0.63481364,107970.0,107960.0,0.06907922]
[1748503466012,0.54375969,107970.0,107960.0,0.06907922]
[1748503466871,0.54375969,107970.0,107960.0,0.07598714]
[1748503469056,0.54375969,107970.0,107960.0,0.06907922]
[1748503481043,0.55298869,107970.0,107960.0,0.06907922]
[1748503509541,0.55298869,107970.0,107960.0,0.05387922]
[1748503509976,0.55298869,107970.0,107960.0,0.03837922]
[1748503510943,0.64404264,107970.0,107960.0,0.03837922]
[1748503512402,5.67404264,107970.0,107960.0,0.03837922]
[1748503513440,0.64404264,107970.0,107960.0,0.03837922]
[1748503517816,0.64404264,107970.0,107960.0,0.01837922]
[1748503520790,5.75011777,107970.0,107960.0,0.01837922]
[1748503520987,5.70514264,107970.0,107960.0,0.01837922]
[1748503521593,5.72390835,107970.0,107960.0,0.01837922]
[1748503523171,5.71467935,107970.0,107960.0,0.01837922]
[1748503527856,6.00251935,107970.0,107960.0,0.01837922]
[1748503528989,5.98671935,107970.0,107960.0,0.01837922]
[1748503529197,5.97141935,107970.0,107960.0,0.01837922]
[1748503530793,5.95265364,107970.0,107960.0,0.02332714]
[1748503530980,5.95265364,107970.0,107960.0,0.01837922]
[1748503531643,5.66481364,107970.0,107960.0,0.03347922]
[1748503531855,0.63481364,107970.0,107960.0,0.04967922]
[1748503543342,0.63481364,107970.0,107960.0,0.04101007]
[1748503553252,0.63481364,107970.0,107960.0,0.03234]
[1748503558104,0.63481364,107970.0,107960.0,0.00104]
[1748503562919,0.63481364,107970.0,107960.0,0.03204]
[1748503565620,0.63481364,107970.0,107960.0,0.01634]
[1748503566469,0.63481364,107970.0,107960.0,0.00104]
[1748503568440,0.54375969,107970.0,107960.0,0.03324]
[1748503571025,0.54375969,107970.0,107960.0,0.05313212]
[1748503571026,0.20375969,107970.0,107960.0,0.05313212]
[1748503571238,0.54375969,107970.0,107960.0,0.05313212]
[1748503573942,0.54375969,107970.0,107960.0,0.34089212]
[1748503578099,0.54375969,107970.0,107960.0,0.05313212]
[1748503578313,0.54375969,107970.0,107960.0,0.33550085]
[1748503580680,0.54375969,107970.0,107960.0,0.33554085]
[1748503582910,0.54375969,107970.0,107960.0,0.04782085]
[1748503583110,0.54375969,107970.0,107960.0,0.33554085]
[1748503585263,0.54375969,107970.0,107960.0,0.01688]
[1748503585404,0.54375969,107970.0,107960.0,0.3046]
[1748503586639,0.54375969,107970.0,107960.0,0.3206]
[1748503594480,0.54375969,107970.0,107960.0,0.2888]
[1748503595445,0.54375969,107970.0,107960.0,0.28876]
[1748503595891,0.54375969,107970.0,107960.0,0.31986]
[1748503599789,0.54375969,107970.0,107960.0,0.1377748]
[1748503599990,0.54375969,107970.0,107960.0,0.76499495]
[1748503600192,0.54375969,107970.0,107960.0,0.4254148]
[1748503600447,0.54375969,107970.0,107960.0,0.43649701]
[1748503601312,0.54375969,107970.0,107960.0,0.43650546]
[1748503602248,0.54375969,107970.0,107960.0,0.4254148]
[1748503612952,0.54375969,107970.0,107960.0,0.1377748]
[1748503613164,0.54375969,107970.0,107960.0,0.4253748]
[1748503622484,0.54375969,107970.0,107960.0,0.77604299]
[1748503624669,0.01852306,107970.0,107960.0,0.96129678]
[1748503624901,0.20375969,107970.0,107960.0,0.77604299]
[1748503625111,0.20375969,107970.0,107960.0,0.97055929]
[1748503625966,0.20375969,107970.0,107960.0,0.95847125]
[1748503626181,0.20375969,107970.0,107960.0,0.97881691]
[1748503626354,0.20375969,107970.0,107960.0,0.97155448]
[1748503628201,0.01852254,107970.0,107960.0,0.98081691]
[1748503628417,0.01852254,107970.0,107960.0,0.99556095]
[1748503628418,0.22228248,107970.0,107960.0,0.99556095]
[1748503628660,0.22228248,107970.0,107960.0,0.99007925]
[1748503628859,0.22228248,107970.0,107960.0,1.00482329]
[1748503629220,0.03704585,107970.0,107960.0,1.00482329]
[1748503629393,0.03704585,107970.0,107960.0,0.99934142]
[1748503629764,0.02778411,107970.0,107960.0,1.0086035]
[1748503629970,0.02778411,107970.0,107960.0,0.99934142]
[1748503630171,0.03704585,107970.0,107960.0,0.99934142]
[1748503630491,0.03704585,107970.0,107960.0,0.99933756]
[1748503630707,0.02778411,107970.0,107960.0,1.00859964]
[1748503630930,0.03704585,107970.0,107960.0,1.0140816]
[1748503631144,0.03704585,107970.0,107960.0,0.67450154]
[1748503631362,0.03704585,107970.0,107960.0,1.01408169]
[1748503631847,0.03704585,107970.0,107960.0,1.00481943]
[1748503632290,0.04630768,107970.0,107960.0,1.01408169]
[1748503632503,0.03704585,107970.0,107960.0,1.05045342]
[1748503632715,0.02778411,107970.0,107960.0,1.02334343]
[1748503632961,0.03704585,107970.0,107960.0,1.01408135]
[1748503633450,0.00926114,107970.0,107960.0,1.02334343]
[1748503633675,0.19449518,107980.0,107960.0,0.98447703]
[1748503633899,0.018521,107980.0,107970.0,0.77682404]
[1748503634123,0.0370425,107980.0,107970.0,1.07652981]
[1748503634336,0.01852082,107980.0,107970.0,1.09127385]
[1748503634548,0.03704216,107980.0,107970.0,1.10053296]
[1748503634756,0.04630313,107980.0,107970.0,1.09127165]
[1748503634966,0.04630304,107980.0,107970.0,1.09127165]
[1748503635853,0.04630304,107980.0,107970.0,1.09227165]
[1748503636491,0.04630304,107980.0,107970.0,1.07752761]
[1748503637136,0.04630304,107980.0,107970.0,1.06826621]
[1748503637352,0.03704267,107980.0,107970.0,1.09596642]
[1748503638014,0.03704267,107980.0,107970.0,1.08670502]
[1748503638221,0.02778179,107980.0,107970.0,1.10522773]
[1748503638650,0.02778179,107980.0,107970.0,1.09596642]
[1748503638879,0.03704267,107980.0,107970.0,1.0866917]
[1748503639370,0.02778179,107980.0,107970.0,1.0959531]
[1748503639579,0.02778179,107980.0,107970.0,1.0774303]
[1748503639799,0.02778179,107980.0,107970.0,1.08669196]
[1748503639800,0.22226267,107980.0,107970.0,1.08669196]
[1748503640224,0.22226267,107980.0,107970.0,1.09595353]
[1748503640679,0.22226267,107980.0,107970.0,1.08669196]
[1748503640902,0.21300213,107980.0,107970.0,1.0774303]
[1748503641106,0.21300213,107980.0,107970.0,1.08669196]
[1748503641319,0.21300213,107980.0,107970.0,1.0774303]
[1748503641520,0.21300213,107980.0,107970.0,1.08669196]
[1748503642336,0.21300213,107980.0,107970.0,1.0774303]
[1748503644079,0.21300213,107980.0,107970.0,0.25587178]
[1748503644295,0.21300213,107980.0,107970.0,0.89211376]
[1748503646390,0.21300213,107980.0,107970.0,0.9013755]
[1748503646591,0.21300213,107980.0,107970.0,0.89211376]
[1748503647405,0.21300213,107980.0,107970.0,0.9013755]
[1748503647614,0.21300213,107980.0,107970.0,0.89211013]
[1748503647889,0.21300213,107980.0,107970.0,0.55252998]
[1748503648099,0.21300213,107980.0,107970.0,0.89211013]
[1748503648307,0.21300213,107980.0,107970.0,0.8828483]
[1748503648536,0.20374133,107980.0,107970.0,0.25586815]
[1748503648742,0.19448045,107980.0,107970.0,0.8828083]
[1748503649755,0.19448045,107980.0,107970.0,0.8921116]
[1748503651467,0.19448045,107980.0,107970.0,0.90685564]
[1748503651890,0.19448045,107980.0,107970.0,0.90685835]
[1748503655090,0.19448045,107980.0,107970.0,0.57654003]
[1748503655333,0.19448045,107980.0,107970.0,0.90685835]
[1748503655560,0.19448045,107980.0,107970.0,0.91612018]
[1748503655776,0.19448045,107980.0,107970.0,0.90685835]
[1748503656310,0.19448045,107980.0,107970.0,0.90686476]
[1748503656517,0.19448045,107980.0,107970.0,0.91612659]
[1748503656725,0.19448045,107980.0,107970.0,0.90506293]
[1748503657523,0.19448045,107980.0,107970.0,0.91432467]
[1748503658205,0.19448045,107980.0,107970.0,0.8652211]
[1748503658896,0.19448045,107980.0,107970.0,0.5779011]
[1748503659332,0.19448045,107980.0,107970.0,0.8651811]
[1748503667256,0.19448045,107980.0,107970.0,0.87444293]
[1748503667502,0.20374116,107980.0,107970.0,1.09157939]
[1748503667747,0.01852116,107980.0,107970.0,1.10084096]
[1748503667958,0.02778204,107980.0,107970.0,1.44968259]
[1748503668172,0.02778204,107980.0,107970.0,1.45894399]
[1748503668388,0.02778204,107980.0,107970.0,1.44968259]
[1748503668598,0.03704301,107980.0,107970.0,1.44968259]
[1748503669029,0.22226249,107980.0,107970.0,1.08231773]
[1748503669238,0.22226249,107980.0,107970.0,1.09157939]
[1748503670154,0.22226249,107980.0,107970.0,1.10084087]
[1748503670384,0.22226249,107980.0,107970.0,1.10084096]
[1748503670796,0.02778204,107980.0,107970.0,1.11010244]
[1748503671221,0.03704301,107980.0,107970.0,1.11010244]
[1748503671810,0.03704301,107980.0,107970.0,1.44042111]
[1748503672235,0.03704301,107980.0,107970.0,1.44968259]
[1748503672450,0.03704301,107980.0,107970.0,1.44042111]
[1748503672666,0.03704301,107980.0,107970.0,1.44968259]
[1748503673301,0.22226249,107980.0,107970.0,1.43115954]
[1748503673510,0.22226249,107980.0,107970.0,1.44042111]
[1748503673722,0.22226249,107980.0,107970.0,1.43115962]
[1748503673960,0.22226249,107980.0,107970.0,1.44042119]
[1748503674395,0.22226249,107980.0,107970.0,1.43115962]
[1748503674836,0.21300204,107980.0,107970.0,1.09157947]
[1748503675504,0.20374133,107980.0,107970.0,0.61906293]
[1748503675704,0.20374133,107980.0,107970.0,0.90626293]
[1748503676323,0.20374133,107980.0,107970.0,0.93337249]
[1748503676606,0.20374133,107980.0,107970.0,0.90626293]
[1748503677177,0.20374133,107980.0,107970.0,0.8970011]
[1748503677391,0.19448045,107980.0,107970.0,0.8812011]
[1748503677602,0.19448045,107980.0,107970.0,0.89046293]
[1748503677818,0.19448045,107980.0,107970.0,0.89042293]
[1748503678255,0.19448045,107980.0,107970.0,0.87432293]
[1748503679716,0.19448045,107980.0,107970.0,0.8650611]
[1748503680604,0.19448045,107980.0,107970.0,0.87432293]
[1748503680808,0.19448045,107980.0,107970.0,0.8650611]
[1748503681050,0.19448045,107980.0,107970.0,0.55708095]
[1748503681267,0.19448045,107980.0,107970.0,0.90592293]
[1748503681931,0.19448045,107980.0,107970.0,0.8966611]
[1748503682145,0.19448045,107980.0,107970.0,0.90592293]
[1748503682360,0.19448045,107980.0,107970.0,0.8966611]
[1748503683532,0.19448045,107980.0,107970.0,0.90592293]
[1748503684028,0.19448045,107980.0,107970.0,0.91518467]
[1748503684230,0.20374116,107980.0,107970.0,1.1004213]
[1748503684661,0.20374116,107980.0,107970.0,1.10968296]
[1748503684868,0.20374116,107980.0,107970.0,1.1004213]
[1748503685080,0.20374116,107980.0,107970.0,1.10968296]
[1748503685880,0.20374116,107980.0,107970.0,1.11894453]
[1748503686099,0.20374116,107980.0,107970.0,1.44926311]
[1748503686532,0.20374116,107980.0,107970.0,1.10968296]
[1748503687225,0.20374116,107980.0,107970.0,0.90592293]
[1748503687856,0.20374116,107980.0,107970.0,0.8966611]
[1748503688078,0.20374116,107980.0,107970.0,0.90592293]
[1748503688288,0.20374116,107980.0,107970.0,0.8966611]
[1748503688492,0.20374116,107980.0,107970.0,0.90592293]
[1748503688694,0.20374116,107980.0,107970.0,0.8803611]
[1748503689121,0.20374116,107980.0,107970.0,0.8650611]
[1748503689559,0.20374116,107980.0,107970.0,0.87432293]
[1748503690655,0.20374116,107980.0,107970.0,0.8650611]
[1748503691058,0.20374116,107980.0,107970.0,0.87432293]
[1748503691266,0.20374116,107980.0,107970.0,0.8650611]
[1748503692440,0.20374116,107980.0,107970.0,0.87432293]
[1748503692865,0.20374116,107980.0,107970.0,0.91498467]
[1748503693492,0.20374116,107980.0,107970.0,0.90572293]
[1748503694104,0.20374116,107980.0,107970.0,0.8964611]
[1748503694312,0.20374116,107980.0,107970.0,1.23604125]
[1748503694533,0.20374116,107980.0,107970.0,1.42127788]